[Event "Titled Tuesday Blitz November 08 Early 2022"]
[White "Gonzalez Vega, Alejandro"]
[Black "Turzo, Attila"]
[WhiteFideId "3510042"]
[BlackFideId "704954"]
[WhiteElo "2288"]
[BlackElo "2519"]
[Result "0-1"]
[Round "04"]
[TimeControl "180+1"]
[Date "2022.11.09"]
[WhiteClock "0:00:05"]
[BlackClock "0:00:18"]

1. e4 {[%clk 0:03:00]}  e5 {[%clk 0:03:00]} 2. Nf3 {[%clk 0:03:00]}  Nc6 {[%clk 0:03:01]} 3. d4 {[%clk 0:03:00]}  exd4 {[%clk 0:03:00]} 4. Bc4 {[%clk 0:03:00]}  Nf6 {[%clk 0:02:55]} 5. e5 {[%clk 0:03:00]}  d5 {[%clk 0:02:54]} 6. Bb5 {[%clk 0:03:01]}  Ne4 {[%clk 0:02:52]} 7. Nxd4 {[%clk 0:03:02]}  Bd7 {[%clk 0:02:52]} 8. Bxc6 {[%clk 0:03:02]}  bxc6 {[%clk 0:02:53]} 9. O-O {[%clk 0:03:02]}  Bc5 {[%clk 0:02:53]} 10. c3 {[%clk 0:03:02]}  O-O {[%clk 0:02:51]} 11. f3 {[%clk 0:03:03]}  Ng5 {[%clk 0:02:51]} 12. f4 {[%clk 0:03:03]}  Ne4 {[%clk 0:02:51]} 13. f5 {[%clk 0:03:03]}  Re8 {[%clk 0:02:30]} 14. f6 {[%clk 0:02:25]}  Rxe5 {[%clk 0:02:25]} 15. fxg7 {[%clk 0:02:19]}  Kxg7 {[%clk 0:02:22]} 16. Bf4 {[%clk 0:02:16]}  Re8 {[%clk 0:02:16]} 17. Qh5 {[%clk 0:02:12]}  f6 {[%clk 0:01:55]} 18. Nd2 {[%clk 0:01:30]}  Kh8 {[%clk 0:01:47]} 19. Nf3 {[%clk 0:01:28]}  Rg8 {[%clk 0:01:43]} 20. Kh1 {[%clk 0:00:49]}  Qe8 {[%clk 0:01:38]} 21. Qxe8 {[%clk 0:00:44]}  Raxe8 {[%clk 0:01:37]} 22. Bxc7 {[%clk 0:00:44]}  Bb6 {[%clk 0:01:11]} 23. Bxb6 {[%clk 0:00:42]}  axb6 {[%clk 0:01:12]} 24. a4 {[%clk 0:00:38]}  c5 {[%clk 0:01:11]} 25. Nb5 {[%clk 0:00:32]}  Bxb5 {[%clk 0:00:36]} 26. axb5 {[%clk 0:00:32]}  Nd6 {[%clk 0:00:37]} 27. Nh4 {[%clk 0:00:19]}  Re6 {[%clk 0:00:33]} 28. Nf5 {[%clk 0:00:17]}  Nxb5 {[%clk 0:00:32]} 29. Ra6 {[%clk 0:00:16]}  Rd8 {[%clk 0:00:31]} 30. h3 {[%clk 0:00:14]}  d4 {[%clk 0:00:31]} 31. cxd4 {[%clk 0:00:13]}  Nxd4 {[%clk 0:00:29]} 32. Nh6 {[%clk 0:00:13]}  Kg7 {[%clk 0:00:28]} 33. Ng4 {[%clk 0:00:12]}  f5 {[%clk 0:00:24]} 34. Ra7+ {[%clk 0:00:12]}  Kg6 {[%clk 0:00:23]} 35. Nf2 {[%clk 0:00:10]}  Ne2 {[%clk 0:00:21]} 36. Rb7 {[%clk 0:00:06]}  Ng3+ {[%clk 0:00:20]} 37. Kg1 {[%clk 0:00:05]}  Nxf1 {[%clk 0:00:21]} 38. Kxf1 {[%clk 0:00:06]}  Rd2 {[%clk 0:00:20]} 39. g4 {[%clk 0:00:05]}  Ree2 {[%clk 0:00:19]} 40. gxf5+ {[%clk 0:00:05]}  Kxf5 {[%clk 0:00:20]} 41. Rf7+ {[%clk 0:00:04]}  Kg6 {[%clk 0:00:20]} 42. Rf8 {[%clk 0:00:04]}  Rxf2+ {[%clk 0:00:17]} 43. Rxf2 {[%clk 0:00:04]}  Rxf2+ {[%clk 0:00:18]} 44. Kxf2 {[%clk 0:00:05]}  Kf5 {[%clk 0:00:19]} 45. Kf3 {[%clk 0:00:05]}  c4 {[%clk 0:00:18]} 46. h4 {[%clk 0:00:05]}  b5 {[%clk 0:00:18]} 0-1


[Site "https://www.chess.com"]

[Event "Titled Tuesday Blitz November 08 Early 2022"]
[White "Goryachkina, Aleksandra"]
[Black "Mihailidis, Anastasios"]
[WhiteFideId "4147103"]
[BlackFideId "4205588"]
[WhiteElo "2484"]
[BlackElo "2312"]
[Result "1-0"]
[Round "04"]
[TimeControl "180+1"]
[Date "2022.11.09"]
[WhiteClock "0:01:16"]
[BlackClock "0:00:28"]

1. e4 {[%clk 0:02:59]}  c5 {[%clk 0:02:59]} 2. Nf3 {[%clk 0:02:59]}  d6 {[%clk 0:02:58]} 3. Bb5+ {[%clk 0:02:57]}  Bd7 {[%clk 0:02:57]} 4. Bxd7+ {[%clk 0:02:56]}  Qxd7 {[%clk 0:02:58]} 5. O-O {[%clk 0:02:56]}  Nf6 {[%clk 0:02:58]} 6. Re1 {[%clk 0:02:56]}  Nc6 {[%clk 0:02:57]} 7. c3 {[%clk 0:02:55]}  e6 {[%clk 0:02:55]} 8. d4 {[%clk 0:02:55]}  cxd4 {[%clk 0:02:56]} 9. cxd4 {[%clk 0:02:55]}  d5 {[%clk 0:02:56]} 10. e5 {[%clk 0:02:52]}  Ne4 {[%clk 0:02:56]} 11. Nbd2 {[%clk 0:02:46]}  Nxd2 {[%clk 0:02:56]} 12. Bxd2 {[%clk 0:02:46]}  Be7 {[%clk 0:02:49]} 13. a3 {[%clk 0:02:39]}  O-O {[%clk 0:02:48]} 14. Rc1 {[%clk 0:02:39]}  Rac8 {[%clk 0:02:47]} 15. Rc3 {[%clk 0:02:38]}  b5 {[%clk 0:02:35]} 16. Rd3 {[%clk 0:02:31]}  f5 {[%clk 0:02:32]} 17. exf6 {[%clk 0:02:26]}  Bxf6 {[%clk 0:02:31]} 18. Bg5 {[%clk 0:02:18]}  Qe7 {[%clk 0:02:24]} 19. Bxf6 {[%clk 0:02:17]}  Qxf6 {[%clk 0:02:25]} 20. Rde3 {[%clk 0:02:15]}  Rce8 {[%clk 0:02:18]} 21. Qd2 {[%clk 0:02:14]}  Re7 {[%clk 0:01:56]} 22. h3 {[%clk 0:02:12]}  a5 {[%clk 0:01:55]} 23. Rc1 {[%clk 0:02:08]}  Rc8 {[%clk 0:01:51]} 24. Rec3 {[%clk 0:02:06]}  Rec7 {[%clk 0:01:42]} 25. Ne5 {[%clk 0:01:55]}  Nxe5 {[%clk 0:01:26]} 26. Rxc7 {[%clk 0:01:54]}  Rxc7 {[%clk 0:01:24]} 27. Rxc7 {[%clk 0:01:54]}  Nc4 {[%clk 0:01:20]} 28. Qe2 {[%clk 0:01:53]}  Nd6 {[%clk 0:00:54]} 29. Rc6 {[%clk 0:01:28]}  Ne4 {[%clk 0:00:52]} 30. Rc8+ {[%clk 0:01:23]}  Kf7 {[%clk 0:00:49]} 31. Qh5+ {[%clk 0:01:22]}  Qg6 {[%clk 0:00:33]} 32. Rc7+ {[%clk 0:01:17]}  Kf6 {[%clk 0:00:28]} 33. Qe5# {[%clk 0:01:16]} 1-0


[Site "https://www.chess.com"]

[Event "Titled Tuesday Blitz November 08 Early 2022"]
[White "Gracia Alvarez, Gerardo Antonio"]
[Black "Bibilashvili, Lali"]
[WhiteFideId "5109124"]
[BlackFideId "13604236"]
[WhiteElo "2139"]
[BlackElo "1819"]
[Result "1-0"]
[Round "04"]
[TimeControl "180+1"]
[Date "2022.11.09"]
[WhiteClock "0:00:41"]
[BlackClock "0:00:43"]

1. d4 {[%clk 0:03:00]}  Nf6 {[%clk 0:02:59]} 2. Bf4 {[%clk 0:03:00]}  d6 {[%clk 0:02:57]} 3. Nf3 {[%clk 0:03:00]}  Nbd7 {[%clk 0:02:57]} 4. c3 {[%clk 0:02:57]}  g6 {[%clk 0:02:56]} 5. Nbd2 {[%clk 0:02:58]}  Bg7 {[%clk 0:02:56]} 6. e4 {[%clk 0:02:58]}  O-O {[%clk 0:02:52]} 7. Be2 {[%clk 0:02:58]}  Ne8 {[%clk 0:02:51]} 8. O-O {[%clk 0:02:49]}  e5 {[%clk 0:02:50]} 9. dxe5 {[%clk 0:02:49]}  dxe5 {[%clk 0:02:50]} 10. Be3 {[%clk 0:02:50]}  c6 {[%clk 0:02:50]} 11. a4 {[%clk 0:02:46]}  Nc7 {[%clk 0:02:50]} 12. Nc4 {[%clk 0:02:45]}  Ne6 {[%clk 0:02:48]} 13. Qc2 {[%clk 0:02:38]}  f5 {[%clk 0:02:45]} 14. Rad1 {[%clk 0:02:31]}  Qc7 {[%clk 0:02:44]} 15. Nd6 {[%clk 0:02:27]}  Nf4 {[%clk 0:02:30]} 16. Bc4+ {[%clk 0:02:23]}  Kh8 {[%clk 0:02:23]} 17. Ng5 {[%clk 0:02:09]}  h6 {[%clk 0:01:58]} 18. Ndf7+ {[%clk 0:02:00]}  Rxf7 {[%clk 0:01:56]} 19. Nxf7+ {[%clk 0:02:01]}  Kh7 {[%clk 0:01:56]} 20. exf5 {[%clk 0:01:53]}  Nb6 {[%clk 0:01:47]} 21. fxg6+ {[%clk 0:01:45]}  Nxg6 {[%clk 0:01:46]} 22. Bxb6 {[%clk 0:01:23]}  axb6 {[%clk 0:01:46]} 23. h4 {[%clk 0:01:22]}  h5 {[%clk 0:01:41]} 24. Ng5+ {[%clk 0:01:20]}  Kh6 {[%clk 0:01:40]} 25. Bf7 {[%clk 0:01:08]}  Nxh4 {[%clk 0:01:20]} 26. Qh7+ {[%clk 0:01:06]}  Kxg5 {[%clk 0:01:19]} 27. Qxg7+ {[%clk 0:01:06]}  Kf5 {[%clk 0:01:11]} 28. Bg6+ {[%clk 0:01:02]}  Nxg6 {[%clk 0:01:11]} 29. Qxc7 {[%clk 0:01:03]}  Be6 {[%clk 0:01:10]} 30. Rd8 {[%clk 0:00:57]}  Rxd8 {[%clk 0:01:09]} 31. Qxd8 {[%clk 0:00:57]}  b5 {[%clk 0:01:08]} 32. a5 {[%clk 0:00:56]}  Bd5 {[%clk 0:01:04]} 33. Qc8+ {[%clk 0:00:50]}  Kf6 {[%clk 0:01:00]} 34. Qxb7 {[%clk 0:00:49]}  Nf4 {[%clk 0:01:00]} 35. f3 {[%clk 0:00:49]}  h4 {[%clk 0:00:59]} 36. a6 {[%clk 0:00:49]}  h3 {[%clk 0:00:57]} 37. gxh3 {[%clk 0:00:48]}  Nxh3+ {[%clk 0:00:55]} 38. Kh2 {[%clk 0:00:48]}  Nf4 {[%clk 0:00:50]} 39. a7 {[%clk 0:00:47]}  c5 {[%clk 0:00:44]} 40. a8=Q {[%clk 0:00:40]}  Bxb7 {[%clk 0:00:43]} 41. Qxb7 {[%clk 0:00:41]} 1-0


[Site "https://www.chess.com"]

[Event "Titled Tuesday Blitz November 08 Early 2022"]
[White "Grandelius, Nils"]
[Black "Besedes, Danilo"]
[WhiteFideId "1710400"]
[BlackFideId "946796"]
[WhiteElo "2919"]
[BlackElo "2616"]
[Result "0-1"]
[Round "04"]
[TimeControl "180+1"]
[Date "2022.11.09"]
[WhiteClock "0:00:09"]
[BlackClock "0:00:14"]

1. Nf3 {[%clk 0:03:00]}  d5 {[%clk 0:02:59]} 2. e3 {[%clk 0:03:01]}  c6 {[%clk 0:02:58]} 3. c4 {[%clk 0:03:01]}  Nf6 {[%clk 0:02:58]} 4. Nc3 {[%clk 0:03:00]}  g6 {[%clk 0:02:57]} 5. b3 {[%clk 0:02:53]}  Bg7 {[%clk 0:02:57]} 6. Bb2 {[%clk 0:02:54]}  O-O {[%clk 0:02:57]} 7. Be2 {[%clk 0:02:54]}  Bg4 {[%clk 0:02:55]} 8. O-O {[%clk 0:02:54]}  e6 {[%clk 0:02:54]} 9. h3 {[%clk 0:02:52]}  Bxf3 {[%clk 0:02:53]} 10. Bxf3 {[%clk 0:02:53]}  Nbd7 {[%clk 0:02:50]} 11. d4 {[%clk 0:02:53]}  a5 {[%clk 0:02:47]} 12. Qe2 {[%clk 0:02:50]}  Re8 {[%clk 0:02:45]} 13. Rfd1 {[%clk 0:02:51]}  Qb8 {[%clk 0:02:21]} 14. Rac1 {[%clk 0:02:49]}  h5 {[%clk 0:02:11]} 15. h4 {[%clk 0:02:44]}  dxc4 {[%clk 0:02:07]} 16. bxc4 {[%clk 0:02:41]}  e5 {[%clk 0:02:07]} 17. Qc2 {[%clk 0:02:34]}  exd4 {[%clk 0:02:05]} 18. Rxd4 {[%clk 0:02:06]}  Nc5 {[%clk 0:01:47]} 19. g3 {[%clk 0:01:59]}  Ng4 {[%clk 0:01:25]} 20. Bxg4 {[%clk 0:01:56]}  hxg4 {[%clk 0:01:04]} 21. Rxg4 {[%clk 0:01:56]}  Qc8 {[%clk 0:01:04]} 22. Rf4 {[%clk 0:01:41]}  Qh3 {[%clk 0:01:01]} 23. Qe2 {[%clk 0:01:06]}  Rad8 {[%clk 0:00:56]} 24. Rd1 {[%clk 0:00:59]}  Be5 {[%clk 0:00:47]} 25. Qg4 {[%clk 0:00:38]}  Qxg4 {[%clk 0:00:20]} 26. Rxg4 {[%clk 0:00:39]}  Nd3 {[%clk 0:00:17]} 27. Ba1 {[%clk 0:00:33]}  Kh7 {[%clk 0:00:17]} 28. h5 {[%clk 0:00:26]}  gxh5 {[%clk 0:00:17]} 29. Rh4 {[%clk 0:00:26]}  Kg6 {[%clk 0:00:17]} 30. Kf1 {[%clk 0:00:24]}  Bf6 {[%clk 0:00:17]} 31. Rh1 {[%clk 0:00:18]}  Ne5 {[%clk 0:00:15]} 32. Rxd8 {[%clk 0:00:14]}  Rxd8 {[%clk 0:00:15]} 33. Ne4 {[%clk 0:00:14]}  Rd1+ {[%clk 0:00:14]} 34. Kg2 {[%clk 0:00:15]}  Rxh1 {[%clk 0:00:14]} 35. Kxh1 {[%clk 0:00:16]}  Nd7 {[%clk 0:00:14]} 36. Nxf6 {[%clk 0:00:11]}  Nxf6 {[%clk 0:00:15]} 37. Kg2 {[%clk 0:00:11]}  b5 {[%clk 0:00:15]} 38. cxb5 {[%clk 0:00:11]}  cxb5 {[%clk 0:00:16]} 39. Kf3 {[%clk 0:00:11]}  Kf5 {[%clk 0:00:16]} 40. Bd4 {[%clk 0:00:10]}  Ne4 {[%clk 0:00:16]} 41. Bb6 {[%clk 0:00:10]}  a4 {[%clk 0:00:16]} 42. Ba5 {[%clk 0:00:10]}  Nc5 {[%clk 0:00:14]} 43. Ke2 {[%clk 0:00:11]}  Kg4 {[%clk 0:00:13]} 44. Bb4 {[%clk 0:00:10]}  Na6 {[%clk 0:00:13]} 45. Be1 {[%clk 0:00:10]}  b4 {[%clk 0:00:14]} 46. f3+ {[%clk 0:00:11]}  Kh3 {[%clk 0:00:14]} 47. Kd3 {[%clk 0:00:11]}  Kg2 {[%clk 0:00:13]} 48. f4 {[%clk 0:00:11]}  Kf3 {[%clk 0:00:14]} 49. e4 {[%clk 0:00:11]}  b3 {[%clk 0:00:13]} 50. axb3 {[%clk 0:00:11]}  axb3 {[%clk 0:00:14]} 51. e5 {[%clk 0:00:11]}  h4 {[%clk 0:00:14]} 52. gxh4 {[%clk 0:00:11]}  Kxf4 {[%clk 0:00:14]} 53. Bc3 {[%clk 0:00:11]}  Kg4 {[%clk 0:00:14]} 54. Be1 {[%clk 0:00:11]}  Kf5 {[%clk 0:00:14]} 55. Kc4 {[%clk 0:00:09]}  b2 {[%clk 0:00:14]} 0-1


[Site "https://www.chess.com"]

[Event "Titled Tuesday Blitz November 08 Early 2022"]
[White "Guimaraes, Wagner Peixoto"]
[Black "Vakhania, Alexandra"]
[WhiteFideId "2100940"]
[BlackFideId "13602560"]
[WhiteElo "2231"]
[BlackElo "2053"]
[Result "1-0"]
[Round "04"]
[TimeControl "180+1"]
[Date "2022.11.09"]
[WhiteClock "0:00:08"]
[BlackClock "0:00:02"]

1. e4 {[%clk 0:03:00]}  c6 {[%clk 0:02:59]} 2. d4 {[%clk 0:02:58]}  d5 {[%clk 0:02:53]} 3. f3 {[%clk 0:02:29]}  g6 {[%clk 0:02:51]} 4. Be3 {[%clk 0:02:24]}  Bg7 {[%clk 0:02:49]} 5. Nc3 {[%clk 0:02:23]}  dxe4 {[%clk 0:02:45]} 6. fxe4 {[%clk 0:02:22]}  Nf6 {[%clk 0:02:46]} 7. Nf3 {[%clk 0:02:19]}  O-O {[%clk 0:02:45]} 8. a3 {[%clk 0:02:10]}  Bg4 {[%clk 0:02:42]} 9. Bc4 {[%clk 0:02:06]}  Nbd7 {[%clk 0:02:37]} 10. e5 {[%clk 0:02:01]}  Ne8 {[%clk 0:02:22]} 11. O-O {[%clk 0:01:55]}  Nc7 {[%clk 0:02:21]} 12. Qe1 {[%clk 0:01:49]}  Be6 {[%clk 0:02:20]} 13. Bd3 {[%clk 0:01:44]}  Nd5 {[%clk 0:02:16]} 14. Bd2 {[%clk 0:01:37]}  Nxc3 {[%clk 0:02:14]} 15. bxc3 {[%clk 0:01:38]}  b5 {[%clk 0:02:12]} 16. Qh4 {[%clk 0:01:36]}  f6 {[%clk 0:02:00]} 17. Qg3 {[%clk 0:01:18]}  Bd5 {[%clk 0:01:55]} 18. Rae1 {[%clk 0:01:10]}  Nb6 {[%clk 0:01:52]} 19. e6 {[%clk 0:00:57]}  Nc4 {[%clk 0:01:44]} 20. Bc1 {[%clk 0:00:55]}  Qd6 {[%clk 0:01:35]} 21. Bf4 {[%clk 0:00:52]}  Qxa3 {[%clk 0:01:34]} 22. Bxg6 {[%clk 0:00:53]}  Qxc3 {[%clk 0:00:40]} 23. Bf5 {[%clk 0:00:42]}  Nd6 {[%clk 0:00:28]} 24. Bxd6 {[%clk 0:00:36]}  exd6 {[%clk 0:00:26]} 25. Qxd6 {[%clk 0:00:23]}  Rfd8 {[%clk 0:00:21]} 26. Qg3 {[%clk 0:00:21]}  Bxf3 {[%clk 0:00:21]} 27. Rxf3 {[%clk 0:00:18]}  Qxd4+ {[%clk 0:00:20]} 28. Kh1 {[%clk 0:00:18]}  Qd6 {[%clk 0:00:20]} 29. e7 {[%clk 0:00:16]}  Rd7 {[%clk 0:00:13]} 30. e8=Q+ {[%clk 0:00:14]}  Rxe8 {[%clk 0:00:11]} 31. Rxe8+ {[%clk 0:00:15]}  Kf7 {[%clk 0:00:12]} 32. Qxd6 {[%clk 0:00:15]}  Rxd6 {[%clk 0:00:11]} 33. Re1 {[%clk 0:00:14]}  a5 {[%clk 0:00:11]} 34. Ref1 {[%clk 0:00:14]}  a4 {[%clk 0:00:11]} 35. c3 {[%clk 0:00:12]}  Rd2 {[%clk 0:00:09]} 36. R3f2 {[%clk 0:00:12]}  Rd5 {[%clk 0:00:08]} 37. Bb1 {[%clk 0:00:10]}  Rc5 {[%clk 0:00:09]} 38. Ba2+ {[%clk 0:00:10]}  Kg6 {[%clk 0:00:08]} 39. Rf3 {[%clk 0:00:11]}  f5 {[%clk 0:00:07]} 40. h3 {[%clk 0:00:11]}  Bxc3 {[%clk 0:00:06]} 41. Bb1 {[%clk 0:00:11]}  b4 {[%clk 0:00:07]} 42. Rxf5 {[%clk 0:00:11]}  Rxf5 {[%clk 0:00:06]} 43. Bxf5+ {[%clk 0:00:12]}  Kg7 {[%clk 0:00:06]} 44. Bc2 {[%clk 0:00:11]}  b3 {[%clk 0:00:05]} 45. Bb1 {[%clk 0:00:11]}  a3 {[%clk 0:00:05]} 46. Rf2 {[%clk 0:00:10]}  c5 {[%clk 0:00:03]} 47. Re2 {[%clk 0:00:09]}  Bd4 {[%clk 0:00:02]} 48. g4 {[%clk 0:00:08]}  c4 {[%clk 0:00:02]} 49. Ba2 {[%clk 0:00:08]} 1-0


[Site "https://www.chess.com"]

[Event "Titled Tuesday Blitz November 08 Early 2022"]
[White "Gulevich, Artem"]
[Black "Nouri, Alekhine"]
[WhiteFideId "24119580"]
[BlackFideId "5216184"]
[WhiteElo "2218"]
[BlackElo "2151"]
[Result "0-1"]
[Round "04"]
[TimeControl "180+1"]
[Date "2022.11.08"]
[WhiteClock "0:00:05"]
[BlackClock "0:00:04"]

1. Nf3 {[%clk 0:03:00]}  c5 {[%clk 0:03:00]} 2. b3 {[%clk 0:02:59]}  Nc6 {[%clk 0:02:57]} 3. Bb2 {[%clk 0:02:59]}  d5 {[%clk 0:02:57]} 4. e3 {[%clk 0:03:00]}  Nf6 {[%clk 0:02:57]} 5. Be2 {[%clk 0:02:59]}  g6 {[%clk 0:02:57]} 6. O-O {[%clk 0:03:00]}  Bg7 {[%clk 0:02:58]} 7. d4 {[%clk 0:03:01]}  Ne4 {[%clk 0:02:57]} 8. Nbd2 {[%clk 0:03:00]}  Nxd2 {[%clk 0:02:55]} 9. Qxd2 {[%clk 0:03:00]}  O-O {[%clk 0:02:54]} 10. c3 {[%clk 0:03:00]}  Bg4 {[%clk 0:02:52]} 11. dxc5 {[%clk 0:02:59]}  Rc8 {[%clk 0:02:52]} 12. b4 {[%clk 0:02:58]}  e6 {[%clk 0:02:51]} 13. Rfd1 {[%clk 0:02:54]}  a5 {[%clk 0:02:50]} 14. a3 {[%clk 0:02:53]}  b6 {[%clk 0:02:46]} 15. cxb6 {[%clk 0:02:50]}  Qxb6 {[%clk 0:02:47]} 16. Nd4 {[%clk 0:02:48]}  Bxe2 {[%clk 0:02:45]} 17. Qxe2 {[%clk 0:02:48]}  Ne5 {[%clk 0:02:45]} 18. c4 {[%clk 0:02:25]}  Nxc4 {[%clk 0:02:43]} 19. Bc3 {[%clk 0:02:25]}  a4 {[%clk 0:02:36]} 20. Rdc1 {[%clk 0:02:21]}  Nd6 {[%clk 0:02:36]} 21. Bb2 {[%clk 0:01:49]}  Rc4 {[%clk 0:02:31]} 22. Rxc4 {[%clk 0:01:45]}  Nxc4 {[%clk 0:02:32]} 23. Bc3 {[%clk 0:01:44]}  Rc8 {[%clk 0:02:32]} 24. Qc2 {[%clk 0:01:31]}  Nd6 {[%clk 0:02:13]} 25. Qd3 {[%clk 0:01:17]}  Ne4 {[%clk 0:02:11]} 26. Bb2 {[%clk 0:01:11]}  h5 {[%clk 0:02:02]} 27. Qd1 {[%clk 0:01:08]}  Qa6 {[%clk 0:01:53]} 28. Rc1 {[%clk 0:01:07]}  Rxc1 {[%clk 0:01:49]} 29. Qxc1 {[%clk 0:01:07]}  Qd3 {[%clk 0:01:36]} 30. b5 {[%clk 0:01:04]}  Nd6 {[%clk 0:01:09]} 31. b6 {[%clk 0:00:57]}  e5 {[%clk 0:01:08]} 32. Nc6 {[%clk 0:00:47]}  Qb5 {[%clk 0:00:44]} 33. Bxe5 {[%clk 0:00:40]}  Bxe5 {[%clk 0:00:32]} 34. Nxe5 {[%clk 0:00:40]}  Qxb6 {[%clk 0:00:32]} 35. h4 {[%clk 0:00:31]}  Nc4 {[%clk 0:00:17]} 36. Nxc4 {[%clk 0:00:30]}  Qc5 {[%clk 0:00:17]} 37. Qc2 {[%clk 0:00:24]}  dxc4 {[%clk 0:00:16]} 38. Qxa4 {[%clk 0:00:23]}  c3 {[%clk 0:00:16]} 39. Qc2 {[%clk 0:00:24]}  Qxa3 {[%clk 0:00:16]} 40. Qe4 {[%clk 0:00:12]}  Qa1+ {[%clk 0:00:10]} 41. Kh2 {[%clk 0:00:12]}  Qa5 {[%clk 0:00:06]} 42. Qe8+ {[%clk 0:00:09]}  Kg7 {[%clk 0:00:06]} 43. Qc8 {[%clk 0:00:08]}  Qe5+ {[%clk 0:00:06]} 44. g3 {[%clk 0:00:08]}  Qf6 {[%clk 0:00:06]} 45. Kg2 {[%clk 0:00:07]}  Qe5 {[%clk 0:00:06]} 46. Qc6 {[%clk 0:00:06]}  f5 {[%clk 0:00:05]} 47. Kg1 {[%clk 0:00:05]}  Kf7 {[%clk 0:00:04]} 48. Kh2 {[%clk 0:00:05]}  Qf6 {[%clk 0:00:04]} 49. Qd7+ {[%clk 0:00:04]}  Kf8 {[%clk 0:00:05]} 50. Qc8+ {[%clk 0:00:04]}  Kg7 {[%clk 0:00:05]} 51. Kg2 {[%clk 0:00:04]}  Qe5 {[%clk 0:00:03]} 52. Qd7+ {[%clk 0:00:04]}  Kh6 {[%clk 0:00:03]} 53. Qc8 {[%clk 0:00:05]}  Kh7 {[%clk 0:00:03]} 54. Kh2 {[%clk 0:00:04]}  Qf6 {[%clk 0:00:02]} 55. Qc7+ {[%clk 0:00:04]}  Qg7 {[%clk 0:00:03]} 56. Qc8 {[%clk 0:00:04]}  Kh6 {[%clk 0:00:03]} 57. Qc6 {[%clk 0:00:04]}  Qe5 {[%clk 0:00:03]} 58. Qc8 {[%clk 0:00:04]}  Kg7 {[%clk 0:00:03]} 59. Qd7+ {[%clk 0:00:04]}  Kf6 {[%clk 0:00:03]} 60. Qc6+ {[%clk 0:00:05]}  Ke7 {[%clk 0:00:04]} 61. Qc8 {[%clk 0:00:05]}  Kd6 {[%clk 0:00:04]} 62. Qb8+ {[%clk 0:00:04]}  Ke6 {[%clk 0:00:04]} 63. Qe8+ {[%clk 0:00:05]}  Kd5 {[%clk 0:00:04]} 64. Qb5+ {[%clk 0:00:04]}  Ke4 {[%clk 0:00:05]} 65. Qc4+ {[%clk 0:00:04]}  Kf3 {[%clk 0:00:05]} 66. Kg1 {[%clk 0:00:05]}  Qe4 {[%clk 0:00:03]} 67. Qxc3 {[%clk 0:00:05]}  Qb1+ {[%clk 0:00:03]} 68. Kh2 {[%clk 0:00:04]}  Kxf2 {[%clk 0:00:04]} 69. Qd2+ {[%clk 0:00:05]}  Kf3 {[%clk 0:00:04]} 70. Qd3 {[%clk 0:00:05]}  Qxd3 {[%clk 0:00:04]} 0-1


[Site "https://www.chess.com"]

[Event "Titled Tuesday Blitz November 08 Early 2022"]
[White "Gurevich, Dmitry"]
[Black "Devaev, Alexander"]
[WhiteFideId "2000407"]
[BlackFideId "4169395"]
[WhiteElo "2506"]
[BlackElo "2225"]
[Result "1-0"]
[Round "04"]
[TimeControl "180+1"]
[Date "2022.11.09"]
[WhiteClock "0:00:20"]
[BlackClock "0:00:01"]

1. d4 {[%clk 0:02:44]}  Nf6 {[%clk 0:02:58]} 2. c4 {[%clk 0:02:44]}  e6 {[%clk 0:02:58]} 3. Nf3 {[%clk 0:02:43]}  Bb4+ {[%clk 0:02:59]} 4. Bd2 {[%clk 0:02:41]}  Qe7 {[%clk 0:02:59]} 5. Nc3 {[%clk 0:02:40]}  b6 {[%clk 0:02:56]} 6. g3 {[%clk 0:02:40]}  Bb7 {[%clk 0:02:57]} 7. Bg2 {[%clk 0:02:41]}  Bxc3 {[%clk 0:02:57]} 8. Bxc3 {[%clk 0:02:41]}  Ne4 {[%clk 0:02:58]} 9. Rc1 {[%clk 0:02:40]}  O-O {[%clk 0:02:58]} 10. O-O {[%clk 0:02:40]}  d6 {[%clk 0:02:56]} 11. d5 {[%clk 0:02:39]}  Nxc3 {[%clk 0:02:56]} 12. Rxc3 {[%clk 0:02:38]}  e5 {[%clk 0:02:53]} 13. e4 {[%clk 0:02:36]}  g6 {[%clk 0:02:51]} 14. Ne1 {[%clk 0:02:34]}  f5 {[%clk 0:02:48]} 15. exf5 {[%clk 0:02:29]}  gxf5 {[%clk 0:02:48]} 16. Nd3 {[%clk 0:02:29]}  Nd7 {[%clk 0:02:47]} 17. Re1 {[%clk 0:02:28]}  Nc5 {[%clk 0:02:38]} 18. Nf4 {[%clk 0:02:12]}  Kh8 {[%clk 0:02:37]} 19. b4 {[%clk 0:02:10]}  Na6 {[%clk 0:02:25]} 20. a3 {[%clk 0:02:07]}  Rg8 {[%clk 0:02:22]} 21. Ne6 {[%clk 0:02:06]}  Rae8 {[%clk 0:02:17]} 22. f4 {[%clk 0:02:02]}  Bc8 {[%clk 0:02:04]} 23. fxe5 {[%clk 0:02:00]}  Bxe6 {[%clk 0:02:03]} 24. exd6 {[%clk 0:01:49]}  Qxd6 {[%clk 0:02:00]} 25. dxe6 {[%clk 0:01:41]}  Qxd1 {[%clk 0:01:37]} 26. Rxd1 {[%clk 0:01:40]}  Rxe6 {[%clk 0:01:38]} 27. Bd5 {[%clk 0:01:30]}  Rd8 {[%clk 0:01:33]} 28. Bxe6 {[%clk 0:01:25]}  Rxd1+ {[%clk 0:01:32]} 29. Kg2 {[%clk 0:01:25]}  Rd2+ {[%clk 0:01:21]} 30. Kh3 {[%clk 0:01:25]}  c5 {[%clk 0:01:07]} 31. b5 {[%clk 0:01:14]}  Nc7 {[%clk 0:01:08]} 32. Bxf5 {[%clk 0:01:12]}  Ne8 {[%clk 0:01:00]} 33. Re3 {[%clk 0:01:09]}  Nd6 {[%clk 0:01:00]} 34. Bd3 {[%clk 0:01:02]}  Kg8 {[%clk 0:00:48]} 35. a4 {[%clk 0:01:00]}  h6 {[%clk 0:00:44]} 36. g4 {[%clk 0:00:58]}  Kf7 {[%clk 0:00:42]} 37. Kg3 {[%clk 0:00:56]}  Kf6 {[%clk 0:00:42]} 38. h4 {[%clk 0:00:55]}  Nf7 {[%clk 0:00:43]} 39. Rf3+ {[%clk 0:00:51]}  Ke6 {[%clk 0:00:32]} 40. Kf4 {[%clk 0:00:43]}  Ne5 {[%clk 0:00:03]} 41. Re3 {[%clk 0:00:43]}  Rf2+ {[%clk 0:00:01]} 42. Kg3 {[%clk 0:00:40]}  Rd2 {[%clk 0:00:01]} 43. Be2 {[%clk 0:00:37]}  Kf6 {[%clk 0:00:01]} 44. Re4 {[%clk 0:00:28]}  Rd4 {[%clk 0:00:01]} 45. Kf4 {[%clk 0:00:20]} 1-0


[Site "https://www.chess.com"]